bitfinex-derivatives/quotes_SOLF0:USTF0_20260116
["timestamp","ask_amount","ask_price","bid_price","bid_amount"]
[1768533328319,3.07940129,142.42,142.36,9.39815718]
[1768533329329,3.07940129,142.42,142.36,3.07505718]
[1768533331323,9.40040129,142.42,142.36,3.07505718]
[1768533331527,3.07940129,142.41,142.36,3.07505718]
[1768533332721,9.40100129,142.41,142.36,3.07505718]
[1768533333127,9.40100129,142.41,142.34,3.07505718]
[1768533333529,3.07940129,142.39,142.32,3.07505718]
[1768533334930,9.40230129,142.38,142.32,3.07505718]
[1768533335632,3.07940129,142.37,142.32,3.07505718]
[1768533337617,3.45278368,142.4,142.3,3.07505718]
[1768533337618,9.40290129,142.36,142.3,3.07505718]
[1768533342738,6.3229,142.38,142.3,3.07505718]
[1768533343134,9.40230129,142.38,142.3,3.07505718]
[1768533343330,3.07940129,142.37,142.3,3.07505718]
[1768533343531,3.07940129,142.36,142.3,3.07505718]
[1768533349143,3.07940129,142.35,142.28,3.07505718]
[1768533349342,3.07940129,142.35,142.26,9.40265718]
[1768533350139,3.07940129,142.35,142.27,3.07505718]
[1768533350545,3.07940129,142.32,142.27,3.07505718]
[1768533350846,3.07940129,142.32,142.25,3.07505718]
[1768533351840,3.13842162,142.31,142.25,3.07505718]
[1768533352645,3.13842162,142.3,142.25,3.07505718]
[1768533353539,3.13842162,142.29,142.23,3.08554336]
[1768533353735,3.13842162,142.29,142.19,3.08554336]
[1768533353940,3.13842162,142.27,142.19,3.08554336]
[1768533354846,3.13842162,142.27,142.21,3.08554336]
[1768533355345,3.13842162,142.27,142.19,3.08554336]
[1768533355541,3.13842162,142.26,142.19,3.08554336]
[1768533356451,3.13842162,142.26,142.2,3.08554336]
[1768533367754,3.13842162,142.26,142.21,6.33]
[1768533368852,3.13842162,142.26,142.21,9.41554336]
[1768533376157,3.13842162,142.29,142.23,3.08554336]
[1768533376363,5.35435372,142.31,142.23,3.08554336]
[1768533376963,3.13842162,142.33,142.26,3.08554336]
[1768533377966,3.13842162,142.33,142.27,6.3275]
[1768533383958,3.13842162,142.33,142.27,9.63062956]
[1768533401987,3.13842162,142.33,142.28,3.0379099]
[1768533405191,3.06411343,142.35,142.29,3.0379099]
[1768533405386,3.06411343,142.37,142.29,3.0379099]
[1768533405984,3.06411343,142.37,142.27,2.2159321]
[1768533405985,6.3232,142.37,142.31,3.0379099]
[1768533406381,5.28004553,142.39,142.32,3.0379099]
[1768533406582,5.28004553,142.41,142.32,3.0379099]
[1768533407181,9.38441343,142.44,142.36,3.0379099]
[1768533407485,11.60034553,142.44,142.36,3.0379099]
[1768533407785,3.06411343,142.43,142.36,3.0379099]
[1768533408190,3.06411343,142.42,142.36,3.0379099]
[1768533408396,5.28004553,142.42,142.36,3.0379099]
[1768533409798,11.60104553,142.42,142.36,3.0379099]
[1768533412592,2.2159321,142.4,142.36,3.0379099]
[1768533415296,2.2159321,142.4,142.33,6.3245]
[1768533415502,5.29097424,142.4,142.34,3.09551641]
[1768533415802,2.2159321,142.38,142.34,3.09551641]
[1768533420001,5.29097424,142.38,142.32,3.09551641]
[1768533421503,3.07504214,142.37,142.32,3.09551641]
[1768533422913,3.07504214,142.37,142.3,3.09551641]
[1768533423208,5.29097424,142.36,142.3,3.09551641]
[1768533424713,3.07504214,142.36,142.3,3.09551641]
[1768533429614,9.39864214,142.36,142.3,3.09551641]
[1768533431318,3.07504214,142.35,142.28,3.09551641]
[1768533431917,3.07504214,142.34,142.28,3.09551641]
[1768533432813,9.39974214,142.34,142.28,3.09551641]
[1768533434021,3.07504214,142.32,142.26,3.09551641]
[1768533435824,9.40054214,142.32,142.26,3.09551641]
[1768533441827,3.07504214,142.32,142.26,3.09551641]
[1768533442033,3.45771754,142.33,142.27,3.05959342]
[1768533443131,9.5579019,142.34,142.27,3.05959342]
[1768533449036,9.5579019,142.34,142.28,3.13723547]
[1768533452444,3.10696225,142.33,142.28,3.13723547]
[1768533474473,3.14464314,142.35,142.28,3.13723547]
[1768533474662,10.47123239,142.34,142.28,3.13723547]
[1768533474863,3.14464314,142.35,142.28,3.13723547]
[1768533475064,10.46270694,142.34,142.28,3.13723547]
[1768533475358,3.14464314,142.35,142.28,3.13723547]
[1768533475561,10.46501256,142.34,142.28,3.13723547]
[1768533475763,10.46501256,142.34,142.25,98.4384]
[1768533475764,3.14464314,142.35,142.29,9.64866536]
[1768533475958,10.46501256,142.34,142.29,9.64866536]
[1768533476161,5.41476599,142.33,142.29,9.64866536]
[1768533476367,3.14464314,142.35,142.29,9.64866536]
[1768533476567,10.46783213,142.34,142.29,9.64866536]
[1768533476768,5.41476599,142.33,142.29,9.64866536]
[1768533476968,3.14464314,142.35,142.29,9.64866536]
[1768533477269,10.46783514,142.34,142.29,9.64866536]
[1768533477463,5.41476714,142.33,142.29,9.64866536]
[1768533477669,3.14464314,142.35,142.29,9.64866536]
[1768533477873,10.46837709,142.34,142.29,9.64866536]
[1768533478073,5.41504426,142.33,142.29,9.64866536]
[1768533478275,3.14464314,142.35,142.29,9.64866536]
[1768533478568,10.46905318,142.34,142.29,9.64866536]
[1768533478772,5.41538858,142.33,142.29,9.64866536]
[1768533478975,3.14464314,142.35,142.29,9.64866536]
[1768533479165,10.46905316,142.34,142.29,9.64866536]
[1768533479362,5.41538856,142.33,142.29,9.64866536]
[1768533479574,3.14464314,142.35,142.29,9.64866536]
[1768533479766,10.4692707,142.34,142.29,9.64866536]
[1768533479966,3.14464314,142.35,142.29,9.64866536]
[1768533480172,10.46915517,142.34,142.29,9.64866536]
[1768533480375,3.14464314,142.35,142.29,9.64866536]
[1768533480672,10.46911861,142.34,142.29,9.64866536]
[1768533480874,3.14464314,142.35,142.29,9.64866536]
[1768533481074,10.4691156,142.34,142.29,9.64866536]
[1768533481273,3.14464314,142.35,142.29,9.64866536]
[1768533481474,10.46894287,142.34,142.29,9.64866536]
[1768533481678,3.14464314,142.35,142.29,9.64866536]
[1768533481868,5.41534253,142.34,142.29,9.64866536]
[1768533482070,3.14464314,142.37,142.3,3.32206536]
[1768533483076,3.14464314,142.39,142.33,9.64666536]
[1768533490078,3.14464314,142.39,142.34,3.32206536]
[1768533490377,3.14464314,142.39,142.34,9.64626536]
[1768533498374,3.14464314,142.41,142.35,9.64576536]
[1768533498573,5.35631282,142.41,142.36,3.32206536]
[1768533500376,5.35631282,142.41,142.35,6.3237]
[1768533507485,5.35631282,142.41,142.35,9.600399]
[1768533512592,5.35631282,142.41,142.36,3.276699]
[1768533517089,5.35631282,142.41,142.35,6.3237]
[1768533519998,5.35631282,142.41,142.35,9.600399]
[1768533526504,5.41086981,142.4,142.35,9.600399]
[1768533526703,5.35631282,142.41,142.35,9.600399]
[1768533526896,5.41086981,142.4,142.35,9.600399]
[1768533527096,5.35631282,142.41,142.35,9.600399]
[1768533527297,5.41086981,142.4,142.35,9.600399]
[1768533527499,5.35631282,142.41,142.35,9.600399]
[1768533527795,10.62192344,142.4,142.35,9.600399]
[1768533528003,5.35631282,142.41,142.35,9.600399]
[1768533528198,10.62202081,142.4,142.35,9.600399]
[1768533528402,5.35631282,142.41,142.35,9.600399]
[1768533528603,10.62386819,142.4,142.35,9.600399]
[1768533528801,5.35631282,142.41,142.35,9.600399]
[1768533529004,10.62386819,142.4,142.35,9.600399]
[1768533529302,5.35631282,142.41,142.35,9.600399]
[1768533529503,10.62418318,142.4,142.35,9.600399]
[1768533529802,5.35631282,142.41,142.35,9.600399]
[1768533530003,10.62418337,142.4,142.35,9.600399]
[1768533530202,5.35631282,142.41,142.35,9.600399]
[1768533530404,10.62469883,142.4,142.35,9.600399]
[1768533530707,5.35631282,142.41,142.35,9.600399]
[1768533530902,10.62469883,142.4,142.35,9.600399]
[1768533531199,5.35631282,142.41,142.35,9.600399]
[1768533531399,10.6253011,142.4,142.35,9.600399]
[1768533531699,5.34591564,142.43,142.37,3.23289774]
[1768533531900,10.6251063,142.42,142.37,3.23289774]
[1768533532103,5.21100574,142.41,142.37,3.23289774]
[1768533532299,3.13424596,142.45,142.37,3.23289774]
[1768533532500,10.62199077,142.44,142.37,3.23289774]
[1768533532699,10.62199077,142.43,142.37,3.23289774]
[1768533532901,3.13424596,142.45,142.39,3.23289774]
[1768533533196,10.62104581,142.44,142.39,3.23289774]
[1768533533401,10.62104581,142.43,142.39,3.23289774]
[1768533533601,3.13424596,142.45,142.39,3.23289774]
[1768533533801,13.75246992,142.44,142.39,3.23289774]
[1768533534100,10.61822396,142.43,142.39,3.23289774]
[1768533534308,3.13424596,142.44,142.39,3.23289774]
[1768533534510,10.61586034,142.43,142.39,3.23289774]
[1768533534812,3.13424596,142.44,142.39,3.23289774]
[1768533535010,10.61586034,142.43,142.39,3.23289774]
[1768533535202,3.13424596,142.44,142.39,3.23289774]
[1768533535402,10.59816939,142.43,142.39,3.23289774]
[1768533535698,3.13424596,142.44,142.39,3.23289774]
[1768533535903,10.59816939,142.43,142.39,3.23289774]
[1768533536104,3.13424596,142.44,142.39,3.23289774]
[1768533536400,5.1888471,142.43,142.39,3.23289774]
[1768533536605,3.13424596,142.44,142.39,3.23289774]
[1768533536803,5.18878671,142.43,142.39,3.23289774]
[1768533537004,3.13424596,142.44,142.39,3.23289774]
[1768533549716,5.34591564,142.44,142.39,3.23289774]
[1768533551328,3.13424596,142.44,142.39,3.23289774]
[1768533553130,9.45434596,142.44,142.39,3.23289774]
[1768533557529,9.45474596,142.43,142.36,3.23289774]
[1768533557736,3.13424596,142.39,142.32,3.23289774]
[1768533558032,8.32119013,142.38,142.32,3.23289774]
[1768533558231,3.13424596,142.38,142.32,3.23289774]
[1768533559932,9.45714596,142.38,142.32,3.23289774]
[1768533560126,3.13424596,142.38,142.32,3.23289774]
[1768533560333,8.31689286,142.37,142.27,3.23289774]
[1768533560633,3.13424596,142.36,142.27,3.23289774]
[1768533561832,3.13424596,142.36,142.29,3.05666472]
[1768533562840,3.13424596,142.36,142.29,9.38316472]
[1768533563032,3.13424596,142.36,142.3,3.05666472]
[1768533563638,6.3232,142.37,142.3,3.05666472]
[1768533563841,98.3285,142.42,142.32,3.05666472]
[1768533563842,6.3223,142.39,142.32,3.05666472]
[1768533564934,6.3217,142.41,142.33,3.05666472]
[1768533565343,6.75878301,142.42,142.33,3.05666472]
[1768533566940,6.75878301,142.42,142.35,3.35115439]
[1768533567236,3.04540276,142.41,142.35,3.35115439]
[1768533583451,12.82025483,142.42,142.35,3.35115439]
[1768533586054,12.82025483,142.42,142.36,3.35115439]
[1768533587254,3.04540276,142.41,142.36,3.35115439]
[1768533588356,3.04540276,142.41,142.35,6.3239]
[1768533589259,3.04540276,142.41,142.36,3.35115439]
[1768533589652,3.04540276,142.41,142.34,3.35115439]
[1768533590859,3.04540276,142.4,142.34,3.35115439]
[1768533598862,9.36720276,142.4,142.33,6.3244]
[1768533599061,3.16432361,142.38,142.32,3.32000897]
[1768533599860,3.16432361,142.38,142.32,9.64520897]
[1768533600672,3.16432361,142.38,142.33,6.3248]
[1768533613278,3.16432361,142.38,142.33,9.64480897]
[1768533627891,3.16432361,142.38,142.33,3.32000897]
[1768533633200,8.53380753,142.41,142.34,3.1900653]
[1768533633404,5.41281796,142.4,142.34,3.1900653]
[1768533633604,5.54482023,142.42,142.34,3.1900653]
[1768533633808,10.51359222,142.41,142.34,3.1900653]
[1768533634008,5.54482023,142.42,142.34,3.1900653]
[1768533634306,10.51393626,142.41,142.34,3.1900653]
[1768533634606,3.3327127,142.42,142.34,3.1900653]
[1768533634805,10.51325493,142.41,142.36,3.1900653]
[1768533635105,9.6536127,142.42,142.36,3.1900653]
[1768533635306,5.41180642,142.41,142.36,3.1900653]
[1768533635506,9.6536127,142.42,142.36,3.1900653]
[1768533635698,5.41180754,142.41,142.36,3.1900653]
[1768533635898,9.6536127,142.42,142.36,3.1900653]
[1768533636103,10.51214623,142.41,142.36,3.1900653]
[1768533636302,9.6536127,142.42,142.36,3.1900653]
[1768533636503,5.41129164,142.41,142.36,3.1900653]
[1768533636703,9.6536127,142.42,142.36,3.1900653]
[1768533636903,5.41129164,142.41,142.36,3.1900653]
[1768533637105,9.6536127,142.42,142.36,3.1900653]
[1768533637301,5.41080595,142.41,142.36,3.1900653]
[1768533637503,9.6536127,142.42,142.36,3.1900653]
[1768533637700,5.41080595,142.41,142.36,3.1900653]
[1768533637895,9.6536127,142.42,142.36,3.1900653]
[1768533638104,5.4108037,142.41,142.36,3.1900653]
[1768533638305,9.6536127,142.42,142.36,3.1900653]
[1768533638508,5.41033111,142.41,142.36,3.1900653]
[1768533638707,9.6536127,142.42,142.36,3.1900653]
[1768533638908,5.41033111,142.41,142.36,3.1900653]
[1768533639109,9.6536127,142.42,142.36,3.1900653]
[1768533639309,5.40989049,142.41,142.36,3.1900653]
[1768533639608,9.6536127,142.42,142.36,3.1900653]
[1768533639805,5.40989049,142.41,142.36,3.1900653]
[1768533640005,9.6536127,142.42,142.36,3.1900653]
[1768533640207,5.4098843,142.41,142.36,3.1900653]
[1768533640407,9.6536127,142.42,142.36,3.1900653]
[1768533640609,5.40947361,142.41,142.36,3.1900653]
[1768533640808,9.6536127,142.42,142.36,3.1900653]
[1768533641010,5.40947361,142.41,142.36,3.1900653]
[1768533641208,9.6536127,142.42,142.36,3.1900653]
[1768533641410,5.40909711,142.41,142.36,3.1900653]
[1768533641612,9.6536127,142.42,142.36,3.1900653]
[1768533641812,5.40909711,142.41,142.36,3.1900653]
[1768533642017,9.6536127,142.42,142.36,3.1900653]
[1768533654924,3.151983,142.41,142.36,3.1900653]
[1768533661433,2.21210753,142.43,142.37,3.14882215]
[1768533662028,5.36409053,142.43,142.37,3.14882215]
[1768533662834,5.36409053,142.43,142.37,9.47182215]
[1768533670547,3.151983,142.43,142.37,9.47182215]
[1768533671740,8.53230753,142.44,142.38,3.14882215]
[1768533672340,5.40678396,142.43,142.38,3.14882215]
[1768533672546,8.53230753,142.44,142.38,3.14882215]
[1768533673435,6.3202,142.44,142.38,3.14882215]
[1768533673833,9.472183,142.44,142.38,3.14882215]
[1768533674039,3.151983,142.42,142.35,9.47242215]
[1768533674239,3.151983,142.42,142.36,3.14882215]
[1768533674635,3.151983,142.41,142.35,6.3236]
[1768533675037,3.151983,142.41,142.35,9.47242215]
[1768533675436,3.151983,142.41,142.36,3.14882215]
[1768533682845,3.151983,142.41,142.35,6.3236]
[1768533683642,3.151983,142.41,142.35,9.55976556]
[1768533685146,3.14041309,142.39,142.33,3.23616556]
[1768533685346,3.14041309,142.39,142.28,3.23616556]
[1768533685552,3.14041309,142.37,142.3,3.23616556]
[1768533685750,3.14041309,142.36,142.3,3.23616556]
[1768533689147,3.11734587,142.35,142.28,3.08566337]
[1768533689941,3.11734587,142.34,142.28,3.08566337]
[1768533690547,3.11734587,142.33,142.28,3.08566337]
[1768533694747,3.11734587,142.31,142.25,3.08566337]
[1768533694944,98.3697,142.36,142.25,3.08566337]
[1768533694945,6.57089772,142.33,142.25,3.08566337]
[1768533695449,3.11734587,142.33,142.25,3.08566337]
[1768533696253,3.11734587,142.35,142.27,3.08566337]
[1768533697747,3.11734587,142.35,142.28,3.08566337]
[1768533702658,3.11734587,142.34,142.28,3.08566337]
[1768533720867,3.11734587,142.34,142.28,9.41266337]
[1768533723665,3.11734587,142.34,142.28,3.08566337]
[1768533723871,3.05831309,142.33,142.27,3.08799429]
[1768533724871,3.05831309,142.33,142.27,9.41539429]
[1768533732976,3.05831309,142.33,142.28,6.3271]
[1768533733175,3.05831309,142.37,142.28,3.08799429]
[1768533733375,5.42576629,142.36,142.28,3.08799429]
[1768533733675,3.05831309,142.37,142.28,3.08799429]
[1768533733875,5.42531613,142.36,142.28,3.08799429]
[1768533734069,3.05831309,142.37,142.28,3.08799429]
[1768533734369,5.4237842,142.36,142.33,3.08799429]
[1768533734571,3.05831309,142.39,142.33,3.08799429]
[1768533734777,10.48698756,142.38,142.33,3.08799429]
[1768533735074,3.05831309,142.39,142.33,3.08799429]
[1768533735371,5.42117699,142.38,142.33,3.08799429]
[1768533735673,5.27045569,142.39,142.33,3.08799429]
[1768533735874,5.42121884,142.38,142.33,3.08799429]
[1768533736175,5.27045569,142.39,142.33,3.08799429]
[1768533736475,5.41914314,142.38,142.33,3.08799429]
[1768533736675,5.27045569,142.39,142.33,3.08799429]
[1768533736976,5.41914314,142.38,142.33,3.08799429]
[1768533737176,5.27045569,142.39,142.33,3.08799429]
[1768533737477,5.41742905,142.38,142.33,3.08799429]
[1768533737669,5.27045569,142.39,142.33,3.08799429]
[1768533737864,5.41742905,142.38,142.33,3.08799429]
[1768533738071,5.27045569,142.39,142.33,3.08799429]
[1768533738465,2.2121426,142.4,142.34,3.08799429]
[1768533738674,5.27045569,142.41,142.34,3.08799429]
[1768533738870,5.41538544,142.4,142.34,3.08799429]
[1768533739070,5.27045569,142.41,142.34,3.08799429]
[1768533739874,5.27045569,142.41,142.35,3.08799429]
[1768533740273,3.05831309,142.4,142.35,3.08799429]
[1768533741674,5.48054607,142.42,142.35,3.08799429]
[1768533741880,3.26840347,142.41,142.35,9.41189429]
[1768533742777,3.26840347,142.41,142.36,9.46885763]
[1768533748384,3.26840347,142.41,142.34,9.61832263]
[1768533748689,5.31644487,142.4,142.34,9.61832263]
[1768533749991,5.31644487,142.4,142.35,3.29412263]
[1768533752792,3.10430227,142.4,142.35,3.29412263]
[1768533756699,3.10430227,142.4,142.35,9.61802263]
[1768533761300,3.10430227,142.44,142.36,3.29412263]
[1768533761501,5.31644487,142.43,142.36,3.29412263]
[1768533763005,11.63694487,142.43,142.36,3.29412263]
[1768533765904,3.10430227,142.42,142.36,3.29412263]
[1768533768104,3.10430227,142.42,142.35,6.3239]
[1768533768702,9.42520227,142.42,142.35,6.3239]
[1768533768906,3.10430227,142.41,142.35,6.3239]
[1768533769108,3.10430227,142.4,142.34,3.29412263]
[1768533769502,3.10430227,142.38,142.31,3.29412263]
[1768533770502,3.10430227,142.38,142.33,9.61952263]
[1768533771108,2.2121426,142.39,142.33,9.61952263]
[1768533772610,5.24973307,142.39,142.33,9.61952263]
[1768533773303,2.2121426,142.39,142.34,3.13193805]
[1768533773905,5.24973307,142.39,142.34,3.13193805]
[1768533778618,5.24973307,142.39,142.33,6.3254]
[1768533779412,3.03759047,142.38,142.33,6.3254]
[1768533780610,3.03759047,142.38,142.32,3.13193805]
[1768533781310,3.03759047,142.38,142.32,9.45783805]
[1768533782718,3.03759047,142.38,142.33,3.13193805]
[1768533790925,2.2121426,142.39,142.33,9.45713805]
[1768533791524,5.24973307,142.39,142.33,9.45713805]
[1768533797032,11.57263307,142.39,142.33,3.13193805]
[1768533797433,9.36049047,142.39,142.33,3.13193805]
[1768533797832,3.03759047,142.38,142.33,3.13193805]
[1768533802135,3.03759047,142.38,142.31,3.10324729]
[1768533802634,3.10831963,142.36,142.31,3.10324729]
[1768533806837,3.10831963,142.36,142.27,3.35553538]
[1768533807537,3.10831963,142.36,142.29,9.68273538]
[1768533810841,3.14583008,142.35,142.29,3.35553538]
[1768533816445,9.47053008,142.35,142.29,3.35553538]
[1768533819550,9.46973008,142.37,142.29,9.68273538]
[1768533819751,9.46973008,142.37,142.3,3.35553538]
[1768533824751,9.46893008,142.39,142.31,3.35553538]
[1768533824955,5.41119597,142.38,142.31,3.35553538]
[1768533825253,3.14583008,142.39,142.31,3.35553538]
[1768533825454,5.41110035,142.38,142.31,3.35553538]
[1768533825647,3.14583008,142.39,142.32,6.3258]
[1768533825847,5.4111348,142.38,142.32,9.68133538]
[1768533826047,3.14583008,142.39,142.33,3.35553538]
[1768533826248,5.41103637,142.38,142.33,3.35553538]
[1768533826456,3.14583008,142.39,142.33,3.35553538]
[1768533826748,5.41118734,142.38,142.33,3.35553538]
[1768533826951,3.14583008,142.39,142.33,3.35553538]
[1768533827955,5.41133402,142.38,142.33,3.35553538]
[1768533828154,3.14583008,142.39,142.33,3.35553538]
[1768533828356,5.41148837,142.38,142.33,3.35553538]
[1768533828557,3.14583008,142.39,142.33,3.35553538]
[1768533828751,5.41148837,142.38,142.33,3.35553538]
[1768533828951,3.14583008,142.39,142.33,3.35553538]
[1768533829157,5.41148837,142.38,142.33,3.35553538]
[1768533829458,3.14583008,142.39,142.33,3.35553538]
[1768533829652,5.41164709,142.38,142.33,3.35553538]
[1768533829851,3.14583008,142.39,142.33,3.35553538]
[1768533830053,5.41164756,142.38,142.33,3.35553538]
[1768533830252,3.14583008,142.39,142.33,3.35553538]
[1768533830549,5.41181008,142.38,142.33,3.35553538]
[1768533830750,3.14583008,142.39,142.33,3.35553538]
[1768533830950,5.41181008,142.38,142.33,3.35553538]
[1768533831151,3.14583008,142.39,142.33,3.35553538]
[1768533831351,5.41184242,142.38,142.33,3.35553538]
[1768533831551,3.14583008,142.39,142.33,3.35553538]
[1768533831753,5.41197718,142.38,142.33,3.35553538]
[1768533831953,3.14583008,142.39,142.33,3.35553538]
[1768533832262,5.41197718,142.38,142.33,9.68093538]
[1768533832462,3.14583008,142.39,142.33,9.68093538]
[1768533832664,5.41214903,142.38,142.33,9.68093538]
[1768533832961,3.14583008,142.39,142.33,9.68093538]
[1768533833161,5.41214903,142.38,142.33,9.68093538]
[1768533833364,3.14583008,142.39,142.33,9.68093538]
[1768533833558,5.41232579,142.38,142.33,9.68093538]
[1768533833862,3.14583008,142.39,142.33,9.68093538]
[1768533834065,5.41232579,142.38,142.33,9.68093538]
[1768533834360,3.14583008,142.39,142.33,9.68093538]
[1768533834560,5.41250763,142.38,142.33,9.68093538]
[1768533834859,3.14583008,142.39,142.33,9.68093538]
[1768533835058,5.41250763,142.38,142.33,9.68093538]
[1768533835260,3.14583008,142.39,142.33,9.68093538]
[1768533835449,5.41269475,142.38,142.33,9.68093538]
[1768533835650,3.14583008,142.39,142.33,9.68093538]
[1768533835855,5.41269475,142.38,142.33,9.68093538]
[1768533836061,3.14583008,142.39,142.33,9.68093538]
[1768533836260,5.41269475,142.38,142.33,9.68093538]
[1768533836561,3.14583008,142.39,142.33,9.68093538]
[1768533836857,5.41294854,142.38,142.33,9.68093538]
[1768533837066,3.14583008,142.39,142.33,9.68093538]
[1768533837257,5.41294854,142.38,142.33,9.68093538]
[1768533837457,3.14583008,142.39,142.33,9.68093538]
[1768533837657,5.41317905,142.38,142.33,9.68093538]
[1768533837859,3.14583008,142.39,142.33,9.68093538]
[1768533838058,5.41317905,142.38,142.33,9.68093538]
[1768533838259,3.14583008,142.39,142.33,9.68093538]
[1768533838558,5.41344395,142.38,142.33,9.68093538]
[1768533838759,3.14583008,142.39,142.33,9.68093538]
[1768533838960,5.41344393,142.38,142.33,9.68093538]
[1768533839257,3.14583008,142.39,142.33,9.68093538]
[1768533839563,5.41369106,142.38,142.33,9.68093538]
[1768533839765,3.14583008,142.39,142.33,9.68093538]
[1768533839958,5.41372892,142.38,142.33,9.68093538]
[1768533840159,3.14583008,142.39,142.33,9.68093538]
[1768533840361,5.41390967,142.38,142.33,9.68093538]
[1768533840560,3.14583008,142.39,142.33,9.68093538]
[1768533840760,5.41390967,142.38,142.33,9.68093538]
[1768533840961,3.14583008,142.39,142.33,9.68093538]
[1768533841164,5.41390967,142.38,142.33,9.68093538]
[1768533841363,3.14583008,142.39,142.33,9.68093538]
[1768533841562,5.4142347,142.38,142.33,9.68093538]
[1768533841763,3.14583008,142.39,142.33,9.68093538]
[1768533841962,5.41419798,142.38,142.33,9.68093538]
[1768533842162,3.14583008,142.39,142.33,9.68093538]
[1768533842364,5.41443239,142.38,142.33,9.68093538]
[1768533842564,3.14583008,142.39,142.33,9.68093538]
[1768533842763,5.41443239,142.38,142.33,9.68093538]
[1768533842966,3.14583008,142.39,142.33,9.68093538]
[1768533843164,5.41446912,142.38,142.33,9.68093538]
[1768533843364,3.14583008,142.39,142.33,9.68093538]
[1768533843562,5.41472358,142.38,142.33,9.68093538]
[1768533843768,3.14583008,142.39,142.33,9.68093538]
[1768533843970,5.41472358,142.38,142.33,9.68093538]
[1768533844269,3.14583008,142.39,142.33,9.68093538]
[1768533844568,5.41498763,142.38,142.33,9.68093538]
[1768533844764,3.14583008,142.39,142.33,9.68093538]
[1768533844964,5.41498763,142.38,142.33,9.68093538]
[1768533845162,3.14583008,142.39,142.33,9.68093538]
[1768533845366,5.41521235,142.38,142.33,9.68093538]
[1768533845567,3.14583008,142.39,142.33,9.68093538]
[1768533845767,5.41521235,142.38,142.33,9.68093538]
[1768533845969,3.14583008,142.39,142.33,9.68093538]
[1768533846267,5.41521235,142.38,142.33,9.68093538]
[1768533846467,3.14583008,142.39,142.33,9.68093538]
[1768533846669,5.41551791,142.38,142.33,9.68093538]
[1768533846880,3.14583008,142.39,142.33,9.68093538]
[1768533853972,6.3225,142.4,142.34,3.10589802]
[1768533854172,5.40355937,142.39,142.34,3.10589802]
[1768533854384,9.49243255,142.4,142.34,3.10589802]
[1768533854574,5.4034081,142.39,142.34,3.10589802]
[1768533854775,9.49243255,142.4,142.34,3.10589802]
[1768533854976,5.4034126,142.39,142.34,3.10589802]
[1768533855179,9.49243255,142.4,142.34,3.10589802]
[1768533855377,5.40331393,142.39,142.34,3.10589802]
[1768533855566,9.49243255,142.4,142.34,3.10589802]
[1768533855766,5.40331393,142.39,142.34,3.10589802]
[1768533855981,9.49243255,142.4,142.34,3.10589802]
[1768533856177,5.40331393,142.39,142.34,3.10589802]
[1768533856375,9.49243255,142.4,142.34,3.10589802]
[1768533856580,5.40339966,142.39,142.34,3.10589802]
[1768533856771,9.49243255,142.4,142.34,3.10589802]
[1768533857075,8.57333221,142.39,142.34,3.10589802]
[1768533857277,3.16993255,142.39,142.34,3.10589802]
[1768533859279,5.38221186,142.39,142.34,3.10589802]
[1768533866282,5.40901351,142.38,142.34,3.10589802]
[1768533866480,5.38221186,142.39,142.34,3.10589802]
[1768533866783,5.40901351,142.38,142.34,3.10589802]
[1768533866977,5.38221186,142.39,142.34,3.10589802]
[1768533867278,5.40983316,142.38,142.34,3.10589802]
[1768533867480,5.38221186,142.39,142.34,3.10589802]
[1768533867680,5.40983316,142.38,142.34,3.10589802]
[1768533867874,5.38221186,142.39,142.34,3.10589802]
[1768533868175,5.40983316,142.38,142.34,3.10589802]
[1768533868477,5.38221186,142.39,142.34,3.10589802]
[1768533868676,5.41088557,142.38,142.34,3.10589802]
[1768533868877,5.38221186,142.39,142.34,3.10589802]
[1768533869083,5.41088556,142.38,142.34,3.10589802]
[1768533869274,5.38221186,142.39,142.34,3.10589802]
[1768533869474,5.4122816,142.38,142.34,3.10589802]
[1768533869674,5.38221186,142.39,142.34,3.10589802]
[1768533869870,5.4122816,142.38,142.34,3.10589802]
[1768533870071,5.38221186,142.39,142.34,3.10589802]
[1768533870271,5.4122816,142.38,142.34,3.10589802]
[1768533870478,5.38221186,142.39,142.34,3.10589802]
[1768533870675,5.41227943,142.38,142.34,3.10589802]
[1768533870870,5.38221186,142.39,142.34,3.10589802]
[1768533871071,5.41227943,142.38,142.34,3.10589802]
[1768533871374,5.38221186,142.39,142.34,3.10589802]
[1768533871682,5.41228254,142.38,142.34,3.10589802]
[1768533871886,5.38221186,142.39,142.34,3.10589802]
[1768533872082,5.41228254,142.38,142.34,3.10589802]
[1768533872385,11.80629995,142.43,142.35,3.13006586]
[1768533872682,10.36341536,142.42,142.35,3.13006586]
[1768533872979,10.36341536,142.41,142.35,3.13006586]
[1768533873285,5.4119028,142.4,142.35,3.13006586]
[1768533873484,3.27262064,142.42,142.35,3.13006586]
[1768533873685,5.41039472,142.41,142.35,3.13006586]
[1768533873985,3.27262064,142.42,142.36,9.45416586]
[1768533874184,5.41039472,142.41,142.36,9.45416586]
[1768533874482,3.27262064,142.42,142.36,9.45416586]
[1768533874685,5.40866715,142.41,142.36,9.45416586]
[1768533874883,3.27262064,142.42,142.36,9.45416586]